Workbook

Sheet 교과서 전체
A1: 2019 교과서(교사용/학생용) 전체
A2: 교과서 | C2: 과목 | D2: 학생용 | E2: 가격 | F2: 학생정산 | G2: 지출액 | H2: 잔액
A3: 1학년 | B3: 1 | C3: 국어 | D3: 305 | E3: 7,540 | F3: =D3*E3 -> 2,299,700 | G3: 2299700 | H3: 0
B4: 2 | C4: 수학 | D4: 305 | E4: 6,920 | F4: =D4*E4 -> 2,110,600 | G4: 2110600 | H4: 0
B5: 3 | C5: 영어 | D5: 305 | E5: 7,130 | F5: =D5*E5 -> 2,174,650 | G5: 2174650 | H5: 0
B6: 4 | C6: 통합사회 | D6: 305 | E6: 5,180 | F6: =D6*E6 -> 1,579,900 | G6: 1579900 | H6: 0
B7: 5 | C7: 통합과학 | D7: 305 | E7: 5,770 | F7: =D7*E7 -> 1,759,850 | G7: 1759850 | H7: 0
B8: 6 | C8: 체육 | D8: 305 | E8: 8,000 | F8: =D8*E8 -> 2,440,000 | G8: 2440000 | H8: 0
B9: 7 | C9: 일본어I | D9: 305 | E9: 8,800 | F9: =D9*E9 -> 2,684,000 | G9: 2684000 | H9: 0
B10: 8 | C10: 음악이론 | D10: 63 | E10: 12,000 | F10: =D10*E10 -> 756,000 | G10: 756000 | H10: 0
B11: 9 | C11: 음악사 | D11: 63 | E11: 12,000 | F11: =D11*E11 -> 756,000 | G11: 756000 | H11: 0
B12: 10 | C12: 시창청음 | D12: 63 | E12: 12,000 | F12: =D12*E12 -> 756,000 | G12: 756000 | H12: 0
C13: 1학년 총합 | F13: =F3+F4+F5+F6+F7+F8+F9+F10+F11+F12 -> 17,316,700 | G13: 17316700 | H13: 0
A14: 2학년 | B14: 1 | C14: 문학 | D14: 187 | E14: 8,370 | F14: =D14*E14 -> 1,565,190 | G14: 1,565,190 | H14: 0
B15: 2 | C15: 독서 | D15: 81 | E15: 7,350 | F15: =D15*E15 -> 595,350 | G15: 595,350 | H15: 0
B16: 3 | C16: 영어I | D16: 268 | E16: 6,170 | F16: =D16*E16 -> 1,653,560 | G16: 1,653,560 | H16: 0
B17: 4 | C17: 영어독해와작문 | D17: 268 | E17: 6,050 | F17: =D17*E17 -> 1,621,400 | G17: 1,621,400 | H17: 0
B18: 5 | C18: 수학I | D18: 268 | E18: 5,280 | F18: =D18*E18 -> 1,415,040 | G18: 1,415,040 | H18: 0
B19: 6 | C19: 한국사 | D19: 268 | E19: 5,870 | F19: =D19*E19 -> 1,573,160 | G19: 1,573,160 | H19: 0
B20: 7 | C20: 생명과학I | D20: 268 | E20: 8,780 | F20: =D20*E20 -> 2,353,040 | G20: 2,353,040 | H20: 0
B21: 8 | C21: 화학I | D21: 268 | E21: 8,740 | F21: =D21*E21 -> 2,342,320 | G21: 2,342,320 | H21: 0
B22: 9 | C22: 운동과건강 | D22: 268 | E22: 7,360 | F22: =D22*E22 -> 1,972,480 | G22: 1,972,480 | H22: 0
B23: 10 | C23: 철학 | D23: 268 | E23: 8,000 | F23: =D23*E23 -> 2,144,000 | G23: 2,144,000 | H23: 0
B24: 11 | C24: 무용의 이해 | D24: 25 | E24: 9,800 | F24: =D24*E24 -> 245,000 | G24: 245,000 | H24: 0
C25: 2학년 총합 | F25: =SUM(F14:F24) -> 17,480,540 | G25: 17480540 | H25: 0
A26: 3학년 | B26: 1 | C26: 화법과작문 | D26: 125 | E26: 4,910 | F26: =D26*E26 -> 613,750 | G26: 613,750 | H26: 0
B27: 2 | C27: 고전 | D27: 160 | E27: 5,200 | F27: =D27*E27 -> 832,000 | G27: 832,000 | H27: 0
B28: 3 | C28: 심화영어 | D28: 285 | E28: 8,500 | F28: =D28*E28 -> 2,422,500 | G28: 2,422,500 | H28: 0
B29: 4 | C29: 사회·문화 | D29: 285 | E29: 4,610 | F29: =D29*E29 -> 1,313,850 | G29: 1,313,850 | H29: 0
B30: 5 | C30: 생활과윤리 | D30: 285 | E30: 6,750 | F30: =D30*E30 -> 1,923,750 | G30: 1,923,750 | H30: 0
B31: 6 | C31: 스포츠문화 | D31: 285 | E31: 9,900 | F31: =D31*E31 -> 2,821,500 | G31: 2,821,500 | H31: 0
B32: 7 | C32: 한문I | D32: 285 | E32: 6,390 | F32: =D32*E32 -> 1,821,150 | G32: 1,821,150 | H32: 0
B33: 8 | C33: 무용의이해 | D33: 24 | E33: 8,820 | F33: =D33*E33 -> 211,680 | G33: 211,680 | H33: 0
C34: 3학년 총합 | F34: =SUM(F26:F33) -> 11,960,180 | G34: 11960180 | H34: 0
F35: =F13+F25+F34 -> 46,757,420 | G35: 46757420 | H35: 0
